Workbook

Sheet Försättsblad
B1: Försättsblad
B2: =IF(B6=0,"",B6) -> UX-ramverket
B5: Tjänst / projekt / förändringsinitiativ
B6: UX-ramverket
B9: Revisionshistorik
B10: Version | C10: Datum | D10: Författare | E10: Kommentar
B11: 0.1 | C11: 2020-11-13 | D11: Amanda Sundberg, Andreas Melin, Pia Jonsson | E11: Påbörjar kalkylen
B12: 0.2 | C12: 2020-11-20 | D12: Amanda Sundberg, Andreas Melin, Pia Jonsson | E12: Reviderar
B13: 0.3 | C13: 2020-11-30 | D13: Amanda Sundberg, Andreas Melin, Pia Jonsson | E13: Reviderar
B24: Startår
B25: Från när vill ni börja räkna nyttor och kostnader?
B27: Parameter | C27: Värde
B28: Startår | C28: 2020
B31: Intressenter
B32: Ange de intressenter som bär nyttor eller kostnader alternativt är involverade i genomförandet. De intressenter som anges här kommer att visas och bli valbara i den här mallens flikar om kostnader och nyttor.
B34: Intressent
B35: Inera
B36: Regionen
B37: Invånare

Sheet Räkna på nyttorna
C1: Räkna på nyttorna
C2: =IF(Försättsblad!B6=0,"",Försättsblad!B6) -> UX-ramverket
C4: Skriv en beskrivande rubrik för nyttan. | E4: Använd tabellerna för att räkna fram nyttan. | F4: Ange ert troligaste värde. | G4: Ange ett min- och max-värde för att få en osäkerhetsbedömning | I4: Var kommer informationen ifrån? | J4: Använd för att exempelvis markera sådant ni vill se över. | M4: Fyll i nyttan år för år. Dessa summeras sedan automatiskt. Tänk på att alla nyttor kanske inte infaller från första året. | S4: Summeras automatiskt | T4: Summeras automatiskt | U4: Summeras automatiskt
A5: 1 | C5: Frigjord tid för front-end utveckling | F5: Trolig | G5: Min | H5: Max | I5: Källa | J5: Ev. kommentar | M5: =Startår -> 2020 | N5: =M5+1 -> 2021 | O5: =N5+1 -> 2022 | P5: 2023 | Q5: 2024 | R5: 2025 | S5: Summa trolig | T5: Summa min | U5: Summa max
C6: Nyttobeskrivning Med hjälp av UX-ramverket är grunden i front-end arbetet redan färdig när utvecklingsprojektet börjar, och front-end utvecklare har redan ett väl etablerat samarbete. Därmed frigörs tid som innan UX-ramverket behövts för front-end utveckling. Den frigjorda tiden kan exempelvis användas till mer och bättre front-end utveckling som ger mer användarvänliga tjänster. | E6: Kostnad för Ineras utvecklingsprojekt över 6 år | F6: 960,000,000 kr | G6: 420,000,000 | H6: 1,500,000,000 | I6: CG Höglund | L6: Trolig | N6: =$F$19 -> 16,000,000 | O6: =$F$19 -> 16,000,000 | P6: 16,000,000 | Q6: 16,000,000 | R6: 16,000,000 | S6: =SUM(M6:R6) -> 80,000,000 | T6: =SUM(M7:R7) -> 21,000,000 | U6: =SUM(M8:R8) -> 150,000,000
E7: Kostnad för Ineras utvecklingsprojekt per år | F7: =F6/6 -> 160,000,000 kr | G7: =G6/6 -> 70,000,000 | H7: =H6/6 -> 250,000,000 | I7: CG Höglund | L7: Min | N7: =$G$19 -> 4,200,000 | O7: =$G$19 -> 4,200,000 | P7: 4,200,000 | Q7: 4,200,000 | R7: 4,200,000
E8: Andel av kostnaden som är front-end kod | F8: 20% | G8: 20% | H8: 20% | I8: Andreas Melin | L8: Max | N8: =$H$19 -> 30,000,000 | O8: =$H$19 -> 30,000,000 | P8: 30,000,000 | Q8: 30,000,000 | R8: 30,000,000
E9: Kostnad för Ineras front-end utveckling per år | F9: =F8*F7 -> 32,000,000 kr | G9: =G8*G7 -> 14,000,000 | H9: =H8*H7 -> 50,000,000 | I9: Andreas Melin
E10: Förväntad minskning av kostnaden med hjälp av UX-ramverket | F10: 50% | G10: 30% | H10: 60% | I10: Andreas Melin
E11: Frigjorda resurser för front-end utevckling med UX-ramverket per år | F11: =F10*F9 -> 16,000,000 kr | G11: =G10*G9 -> 4,200,000 | H11: =H10*H9 -> 30,000,000 | I11: Andreas Melin
E12: Timkostnad front-end utvecklare | F12: 900 kr | G12: 900 | H12: 900 | I12: Andreas Melin
E13: Frigjorda timmar för front-end utveckling per år | F13: =F11/F12 -> 17,778 | G13: =G11/G12 -> 4,667 | H13: =H11/H12 -> 33,333
E19: Värdet på frigjord front-end utveckling per år | F19: =F11 -> 16,000,000 kr | G19: =G11 -> 4,200,000 kr | H19: 30,000,000 kr
A22: 2 | C22: Frigjord tid för UX | F22: Trolig | G22: Min | H22: Max | I22: Källa | J22: Ev. kommentar | M22: =Startår -> 2020 | N22: =M22+1 -> 2021 | O22: =N22+1 -> 2022 | P22: =O22+1 -> 2023 | Q22: =P22+1 -> 2024 | R22: =Q22+1 -> 2025 | S22: Summa trolig | T22: Summa min | U22: Summa max
C23: Nyttobeskrivning Med hjälp av UX-ramverket är grunden i UX-arbete redan färdig när utvecklingsprojektet börjar, och UX:are på Inera har redan ett väl etablerat samarbete. Därmed frigörs tid som innan UX-ramverket behövdes för UX-arbete. Den frigjorda tiden kan exempelvis användas till mer och bättre UX som ger mer användarvänliga tjänster. | E23: Kostnad för Ineras utvecklingsprojekt per år | F23: =F7 -> 160,000,000 kr | G23: =G7 -> 70,000,000 | H23: 250,000,000 | I23: CG | L23: Trolig | N23: =$F$36 -> 6,400,000 | O23: =$F$36 -> 6,400,000 | P23: 6,400,000 | Q23: 6,400,000 | R23: 6,400,000 | S23: =SUM(M23:R23) -> 32,000,000 | T23: =SUM(M24:R24) -> 7,000,000 | U23: =SUM(M25:R25) -> 75,000,000
E24: Andel av kostnaden som är UX | F24: 15% | G24: 15% | H24: 15% | I24: Andreas Melin | L24: Min | N24: =$G$36 -> 1,400,000 | O24: =$G$36 -> 1,400,000 | P24: 1,400,000 | Q24: 1,400,000 | R24: 1,400,000
E25: Kostnad för UX per år | F25: =F24*F23 -> 24,000,000 kr | G25: =G24*G23 -> 10,500,000 | H25: =H24*H23 -> 37,500,000 | I25: Andreas Melin | L25: Max | N25: =$H$36 -> 15,000,000 | O25: =$H$36 -> 15,000,000 | P25: 15,000,000 | Q25: 15,000,000 | R25: 15,000,000
E26: Förväntad andel av kostnaden som blir UX med UX-ramverket | F26: 11% | G26: 13% | H26: 9% | I26: Andreas Melin
E27: Förväntad kostnad för UX per år med UX-ramverket | F27: =F26*F23 -> 17,600,000 kr | G27: =G26*G23 -> 9,100,000 | H27: =H26*H23 -> 22,500,000 | I27: Andreas Melin
E28: Sparade resurser på UX | F28: =F25-F27 -> 6,400,000 kr | G28: =G25-G27 -> 1,400,000 | H28: =H25-H27 -> 15,000,000 | I28: Andreas Melin
E29: Timkostnad för UX | F29: 900 kr | G29: 900 | H29: 900 | I29: Andreas Melin
E30: Frigjorda timmar för UX-arbete | F30: =F28/F29 -> 7,111 | G30: =G28/G29 -> 1,556 | H30: =H28/H29 -> 16,667 | I30: Andreas Melin
E36: Värdet på frigjorda UX-resurser per år | F36: =F28 -> 6,400,000 kr | G36: =G28 -> 1,400,000 kr | H36: 15,000,000 kr
A39: 3 | C39: Frigjord tid för utvecklare som åtgärdar användbarhetsproblem i efterhand | F39: Trolig | G39: Min | H39: Max | I39: Källa | J39: Ev. kommentar | M39: =Startår -> 2020 | N39: =M39+1 -> 2021 | O39: =N39+1 -> 2022 | P39: =O39+1 -> 2023 | Q39: =P39+1 -> 2024 | R39: =Q39+1 -> 2025 | S39: Summa trolig | T39: Summa min | U39: Summa max
C40: Nyttobeskrivning UX-ramverket säkerställer att de tjänster som utvecklas har hög användbarhet, vilket innebär att Ineras kostnader för att åtgärda användbarhetsproblem i efterhand minskar. Ofta brukar man säga att det tar en timma att åtgärda ett användbarhetsproblem på pappret, 10 timmar i prototyp och 100 timmar i utveckling. | E40: Antal användbarhets- eller tillgänglighetsbuggar per år i PWT | F40: 750 | G40: 600 | H40: 1,000 | I40: Andreas Melin | L40: Trolig | O40: =$F$53 -> 3,240,000 | P40: =$F$53 -> 3,240,000 | Q40: 3,240,000 | R40: 3,240,000 | S40: =SUM(M40:R40) -> 12,960,000 | T40: =SUM(M41:R41) -> 6,912,000 | U40: =SUM(M42:R42) -> 20,160,000
E41: Andel av buggarna som UX-ramverket förväntas förhindra | F41: 60% | G41: 40% | H41: 70% | I41: Andreas Melin | L41: Min | O41: =$G$53 -> 1,728,000 | P41: =$G$53 -> 1,728,000 | Q41: 1,728,000 | R41: 1,728,000
E42: Antal användbarhets- eller tillgänlighetsbuggar som förhindras per år | F42: =F41*F40 -> 450 | G42: =G41*G40 -> 240 | H42: =H41*H40 -> 700 | I42: Andreas Melin | L42: Max | O42: =$H$53 -> 5,040,000 | P42: =$H$53 -> 5,040,000 | Q42: 5,040,000 | R42: 5,040,000
E43: Antal timmar som behövs per bugg | F43: 8 | G43: 8 | H43: 8 | I43: Andreas Melin
E44: Timmar för att åtgärda användbarhetsproblem per år | F44: =F43*F42 -> 3,600 | G44: =G43*G42 -> 1,920 | H44: =H43*H42 -> 5,600 | I44: Andreas Melin
E45: Timpris utvecklare | F45: 900 | G45: 900 | H45: 900 | I45: Andreas Melin
E46: Kostnad per år | F46: =F45*F44 -> 3,240,000 | G46: =G45*G44 -> 1,728,000 | H46: =H45*H44 -> 5,040,000
E53: Värdet på frigjorda utvecklingsresurser per år | F53: =F46 -> 3,240,000 | G53: =G46 -> 1,728,000 | H53: =H46 -> 5,040,000
F54: =F13+F30+F44 -> 28,489
A56: 4 | C56: Frigjord tid för Ineras kundtjänst | F56: Trolig | G56: Min | H56: Max | I56: Källa | J56: Ev. kommentar | M56: =Startår -> 2020 | N56: =M56+1 -> 2021 | O56: =N56+1 -> 2022 | P56: =O56+1 -> 2023 | Q56: =P56+1 -> 2024 | R56: =Q56+1 -> 2025 | S56: Summa trolig | T56: Summa min | U56: Summa max
C57: Det kostar 35 kr per mejl/telefonsamtal enligt Camilla Widmark. Så ett ärende kan generera fler kontakter - och därför är kostnaden per ärende kanske underskattad. Antalet kontatker låg på 24 000 ärenden 2020 tom april - vilket skulle bli 72 000 per år - men eftersom mars och april var coronamånader väljer vi 50 000 per år för att mer spegla ett vanligt år. | E57: Ärenden till kundtjänst på grund av användbarhetsproblem per år | F57: 50,000 | G57: 50,000 | H57: 50,000 | I57: Camilla Widmark | J57: Osäker | L57: Trolig | O57: =$F$70 -> 700,000 | P57: =$F$70 -> 700,000 | Q57: 700,000 | R57: 700,000 | S57: =SUM(M57:R57) -> 2,800,000 | T57: =SUM(M58:R58) -> 1,400,000 | U57: =SUM(M59:R59) -> 4,200,000
E58: Andel ärenden som kan undvikas med UX-ramverket | F58: 40% | G58: 20% | H58: 60% | I58: Andreas Melin | J58: Osäker | L58: Min | O58: =$G$70 -> 350,000 | P58: =$G$70 -> 350,000 | Q58: 350,000 | R58: 350,000
E59: Kostnad per ärende | F59: 35 kr | G59: 35 | H59: 35 | I59: Camilla Widmark | J59: Osäker | L59: Max | O59: =$H$70 -> 1,050,000 | P59: =$H$70 -> 1,050,000 | Q59: 1,050,000 | R59: 1,050,000
E60: Värde för minskade ärenden | F60: =F57*F58*F59 -> 700,000 kr | G60: =G57*G58*G59 -> 350,000 | H60: =H57*H58*H59 -> 1,050,000
E70: Värdet på frigjord tid för Ineras kundtjänst per år | F70: =F60 -> 700,000 | G70: =G60 -> 350,000 | H70: 1,050,000
A73: 5 | C73: Frigjord tid för invånare genom ökad användbarhet - exempel inloggning 1177.se | F73: Trolig | G73: Min | H73: Max | I73: Källa | J73: Ev. kommentar | M73: =Startår -> 2020 | N73: =M73+1 -> 2021 | O73: =N73+1 -> 2022 | P73: =O73+1 -> 2023 | Q73: =P73+1 -> 2024 | R73: =Q73+1 -> 2025 | S73: Summa trolig | T73: Summa min | U73: Summa max
E74: Antal inloggningar på 1177.se per år | F74: 70,000,000 | G74: 50,000,000 | H74: 90,000,000 | I74: Inera.se | L74: Trolig | N74: =$F$87 -> 27,222,222 | O74: =$F$87 -> 27,222,222 | P74: 27,222,222 | Q74: 27,222,222 | R74: 27,222,222 | S74: =SUM(M74:R74) -> 136,111,111 | T74: =SUM(M75:R75) -> 97,222,222 | U74: =SUM(M76:R76) -> 175,000,000
E75: Antal klick för att logga in innan UX-ramverket | F75: 8 | G75: 8 | H75: 8 | I75: Andreas Melin | L75: Min | N75: =$G$87 -> 19,444,444 | O75: =$G$87 -> 19,444,444 | P75: 19,444,444 | Q75: 19,444,444 | R75: 19,444,444
E76: Sekunder per klick | F76: 5 | G76: 5 | H76: 5 | I76: Andreas Melin | L76: Max | N76: =$H$87 -> 35,000,000 | O76: =$H$87 -> 35,000,000 | P76: 35,000,000 | Q76: 35,000,000 | R76: 35,000,000
E77: Antal sekunder för att logga in för UX-ravmerket | F77: =F76*F75*F74 -> 2,800,000,000 | G77: =G76*G75*G74 -> 2,000,000,000 | H77: 3,600,000,000
E78: Antal klick för att logg in efter UX-ravmerket | F78: 4 | G78: 4 | H78: 4 | I78: Andreas Melin
E79: Antal sekunder för att logga in efter UX-ramverket | F79: =F78*F76*F74 -> 1,400,000,000 | G79: =G78*G76*G74 -> 1,000,000,000 | H79: 1,800,000,000
E80: Sparade sekunder | F80: =F77-F79 -> 1,400,000,000 | G80: =G77-G79 -> 1,000,000,000 | H80: 1,800,000,000 | M80: =24/4 -> 6
E81: Sparade timmar | F81: =F80/60/60 -> 388,889 | G81: =G80/60/60 -> 277,778 | H81: 500,000 | M81: =M80*12 -> 72
E82: Värdering av en invånares tid för en timme | F82: 70 | G82: 70 | H82: 70
E87: Värdet på frigjord tid för en invånare genom ökad användbarhet - exempel 1177.se | F87: =F82*F81 -> 27,222,222 | G87: =G82*G81 -> 19,444,444 | H87: 35,000,000
A90: 6 | F90: Trolig | G90: Min | H90: Max | I90: Källa | J90: Ev. kommentar | M90: =Startår -> 2020 | N90: =M90+1 -> 2021 | O90: =N90+1 -> 2022 | P90: =O90+1 -> 2023 | Q90: =P90+1 -> 2024 | R90: =Q90+1 -> 2025 | S90: Summa trolig | T90: Summa min | U90: Summa max
L91: Trolig | S91: =SUM(M91:R91) -> 0 | T91: =SUM(M92:R92) -> 0 | U91: =SUM(M93:R93) -> 0
L92: Min
L93: Max
A107: 7 | F107: Trolig | G107: Min | H107: Max | I107: Källa | J107: Ev. kommentar | M107: =Startår -> 2020 | N107: =M107+1 -> 2021 | O107: =N107+1 -> 2022 | P107: =O107+1 -> 2023 | Q107: =P107+1 -> 2024 | R107: =Q107+1 -> 2025 | S107: Summa trolig | T107: Summa min | U107: Summa max
L108: Trolig | S108: =SUM(M108:R108) -> 0 | T108: =SUM(M109:R109) -> 0 | U108: =SUM(M110:R110) -> 0
L109: Min
L110: Max
A124: 8 | F124: Trolig | G124: Min | H124: Max | I124: Källa | J124: Ev. kommentar | M124: =Startår -> 2020 | N124: =M124+1 -> 2021 | O124: =N124+1 -> 2022 | P124: =O124+1 -> 2023 | Q124: =P124+1 -> 2024 | R124: =Q124+1 -> 2025 | S124: Summa trolig | T124: Summa min | U124: Summa max
L125: Trolig | S125: =SUM(M125:R125) -> 0 | T125: =SUM(M126:R126) -> 0 | U125: =SUM(M127:R127) -> 0
L126: Min
L127: Max
A141: 9 | F141: Trolig | G141: Min | H141: Max | I141: Källa | J141: Ev. kommentar | M141: =Startår -> 2020 | N141: =M141+1 -> 2021 | O141: =N141+1 -> 2022 | P141: =O141+1 -> 2023 | Q141: =P141+1 -> 2024 | R141: =Q141+1 -> 2025 | S141: Summa trolig | T141: Summa min | U141: Summa max
L142: Trolig | S142: =SUM(M142:R142) -> 0 | T142: =SUM(M143:R143) -> 0 | U142: =SUM(M144:R144) -> 0
L143: Min
L144: Max
A158: 10 | F158: Trolig | G158: Min | H158: Max | I158: Källa | J158: Ev. kommentar | M158: =Startår -> 2020 | N158: =M158+1 -> 2021 | O158: =N158+1 -> 2022 | P158: =O158+1 -> 2023 | Q158: =P158+1 -> 2024 | R158: =Q158+1 -> 2025 | S158: Summa trolig | T158: Summa min | U158: Summa max
L159: Trolig | S159: =SUM(M159:R159) -> 0 | T159: =SUM(M160:R160) -> 0 | U159: =SUM(M161:R161) -> 0
L160: Min
L161: Max
A175: 11 | F175: Trolig | G175: Min | H175: Max | I175: Källa | J175: Ev. kommentar | M175: =Startår -> 2020 | N175: =M175+1 -> 2021 | O175: =N175+1 -> 2022 | P175: =O175+1 -> 2023 | Q175: =P175+1 -> 2024 | R175: =Q175+1 -> 2025 | S175: Summa trolig | T175: Summa min | U175: Summa max
L176: Trolig | S176: =SUM(M176:R176) -> 0 | T176: =SUM(M177:R177) -> 0 | U176: =SUM(M178:R178) -> 0
L177: Min
L178: Max
A192: 12 | F192: Trolig | G192: Min | H192: Max | I192: Källa | J192: Ev. kommentar | M192: =Startår -> 2020 | N192: =M192+1 -> 2021 | O192: =N192+1 -> 2022 | P192: =O192+1 -> 2023 | Q192: =P192+1 -> 2024 | R192: =Q192+1 -> 2025 | S192: Summa trolig | T192: Summa min | U192: Summa max
L193: Trolig | S193: =SUM(M193:R193) -> 0 | T193: =SUM(M194:R194) -> 0 | U193: =SUM(M195:R195) -> 0
L194: Min
L195: Max
A209: 13 | F209: Trolig | G209: Min | H209: Max | I209: Källa | J209: Ev. kommentar | M209: =Startår -> 2020 | N209: =M209+1 -> 2021 | O209: =N209+1 -> 2022 | P209: =O209+1 -> 2023 | Q209: =P209+1 -> 2024 | R209: =Q209+1 -> 2025 | S209: Summa trolig | T209: Summa min | U209: Summa max
L210: Trolig | S210: =SUM(M210:R210) -> 0 | T210: =SUM(M211:R211) -> 0 | U210: =SUM(M212:R212) -> 0
L211: Min
L212: Max
A226: 14 | F226: Trolig | G226: Min | H226: Max | I226: Källa | J226: Ev. kommentar | M226: =Startår -> 2020 | N226: =M226+1 -> 2021 | O226: =N226+1 -> 2022 | P226: =O226+1 -> 2023 | Q226: =P226+1 -> 2024 | R226: =Q226+1 -> 2025 | S226: Summa trolig | T226: Summa min | U226: Summa max
L227: Trolig | S227: =SUM(M227:R227) -> 0 | T227: =SUM(M228:R228) -> 0 | U227: =SUM(M229:R229) -> 0
L228: Min
L229: Max
A243: 15 | F243: Trolig | G243: Min | H243: Max | I243: Källa | J243: Ev. kommentar | M243: =Startår -> 2020 | N243: =M243+1 -> 2021 | O243: =N243+1 -> 2022 | P243: =O243+1 -> 2023 | Q243: =P243+1 -> 2024 | R243: =Q243+1 -> 2025 | S243: Summa trolig | T243: Summa min | U243: Summa max
L244: Trolig | S244: =SUM(M244:R244) -> 0 | T244: =SUM(M245:R245) -> 0 | U244: =SUM(M246:R246) -> 0
L245: Min
L246: Max
A260: 16 | F260: Trolig | G260: Min | H260: Max | I260: Källa | J260: Ev. kommentar | M260: =Startår -> 2020 | N260: =M260+1 -> 2021 | O260: =N260+1 -> 2022 | P260: =O260+1 -> 2023 | Q260: =P260+1 -> 2024 | R260: =Q260+1 -> 2025 | S260: Summa trolig | T260: Summa min | U260: Summa max
L261: Trolig | S261: =SUM(M261:R261) -> 0 | T261: =SUM(M262:R262) -> 0 | U261: =SUM(M263:R263) -> 0
L262: Min
L263: Max
A277: 17 | F277: Trolig | G277: Min | H277: Max | I277: Källa | J277: Ev. kommentar | M277: =Startår -> 2020 | N277: =M277+1 -> 2021 | O277: =N277+1 -> 2022 | P277: =O277+1 -> 2023 | Q277: =P277+1 -> 2024 | R277: =Q277+1 -> 2025 | S277: Summa trolig | T277: Summa min | U277: Summa max
L278: Trolig | S278: =SUM(M278:R278) -> 0 | T278: =SUM(M279:R279) -> 0 | U278: =SUM(M280:R280) -> 0
L279: Min
L280: Max
A294: 18 | F294: Trolig | G294: Min | H294: Max | I294: Källa | J294: Ev. kommentar | M294: =Startår -> 2020 | N294: =M294+1 -> 2021 | O294: =N294+1 -> 2022 | P294: =O294+1 -> 2023 | Q294: =P294+1 -> 2024 | R294: =Q294+1 -> 2025 | S294: Summa trolig | T294: Summa min | U294: Summa max
L295: Trolig | S295: =SUM(M295:R295) -> 0 | T295: =SUM(M296:R296) -> 0 | U295: =SUM(M297:R297) -> 0
L296: Min
L297: Max
A311: 19 | F311: Trolig | G311: Min | H311: Max | I311: Källa | J311: Ev. kommentar | M311: =Startår -> 2020 | N311: =M311+1 -> 2021 | O311: =N311+1 -> 2022 | P311: =O311+1 -> 2023 | Q311: =P311+1 -> 2024 | R311: =Q311+1 -> 2025 | S311: Summa trolig | T311: Summa min | U311: Summa max
L312: Trolig | S312: =SUM(M312:R312) -> 0 | T312: =SUM(M313:R313) -> 0 | U312: =SUM(M314:R314) -> 0
L313: Min
L314: Max
A328: 20 | F328: Trolig | G328: Min | H328: Max | I328: Källa | J328: Säkerhet | M328: =Startår -> 2020 | N328: =M328+1 -> 2021 | O328: =N328+1 -> 2022 | P328: =O328+1 -> 2023 | Q328: =P328+1 -> 2024 | R328: =Q328+1 -> 2025 | S328: Summa trolig | T328: Summa min | U328: Summa max
L329: Trolig | S329: =SUM(M329:R329) -> 0 | T329: =SUM(M330:R330) -> 0 | U329: =SUM(M331:R331) -> 0
L330: Min
L331: Max
A345: 21 | F345: Trolig | G345: Min | H345: Max | I345: Källa | J345: Säkerhet | M345: =Startår -> 2020 | N345: =M345+1 -> 2021 | O345: =N345+1 -> 2022 | P345: =O345+1 -> 2023 | Q345: =P345+1 -> 2024 | R345: =Q345+1 -> 2025 | S345: Summa trolig | T345: Summa min | U345: Summa max
L346: Trolig | S346: =SUM(M346:R346) -> 0 | T346: =SUM(M347:R347) -> 0 | U346: =SUM(M348:R348) -> 0
L347: Min
L348: Max

Sheet Nyttor
B1: Nyttor
B2: =IF(Försättsblad!B6=0,"",Försättsblad!B6) -> UX-ramverket
C4: Välj finansiell nytta, en omfördelningsnytta, eller kvalitativ, mätbar. | D4: Ange ett kortfattat men beskrivande namn på nyttan, exempelvis "minskad restid", "reducerad personalkostnad", etc. | E4: Ange för vilken intressent nyttan uppstår. | F4: För finansiella nyttor och omfördelningsnyttor, ange det uppskattade värdet per år under realiseringsperioden. | M4: Om möjligt estimera ett min- och ett max värde.
F5: =Startår -> 2020 | G5: =F5+1 -> 2021 | H5: =G5+1 -> 2022 | I5: 2023 | J5: 2024 | K5: 2025
B6: ID | C6: Nyttokategori | D6: Nyttans namn | E6: Intressent | F6: år 1 | G6: år 2 | H6: år 3 | I6: år 4 | J6: år 5 | K6: år 6 | L6: Summa | M6: Min | N6: Max | O6: Vägt medel | P6: Osäkerhet
B7: 1 | C7: 2. Omfördelningsnytta | D7: ='Räkna på nyttorna'!C5 -> Frigjord tid för front-end utveckling | E7: Inera | F7: ='Räkna på nyttorna'!M6 -> 0 | G7: ='Räkna på nyttorna'!N6 -> 16,000,000 | H7: ='Räkna på nyttorna'!O6 -> 16,000,000 | I7: ='Räkna på nyttorna'!P6 -> 16,000,000 | J7: ='Räkna på nyttorna'!Q6 -> 16,000,000 | K7: ='Räkna på nyttorna'!R6 -> 16,000,000 | L7: ='Räkna på nyttorna'!S6 -> 80,000,000 | M7: ='Räkna på nyttorna'!T6 -> 21,000,000 | N7: ='Räkna på nyttorna'!U6 -> 150,000,000 | O7: =IF(OR(ISBLANK(N7),ISBLANK(M7),ISBLANK(L7)),"",(N7+M7+3*L7)/5) -> 82,200,000 | P7: =IF(OR(ISBLANK(L7),L7=0),"",(N7-M7)/5/L7) -> 32%
B8: 2 | C8: 2. Omfördelningsnytta | D8: ='Räkna på nyttorna'!C22 -> Frigjord tid för UX | E8: Inera | F8: ='Räkna på nyttorna'!M23 -> 0 | G8: ='Räkna på nyttorna'!N23 -> 6,400,000 | H8: ='Räkna på nyttorna'!O23 -> 6,400,000 | I8: ='Räkna på nyttorna'!P23 -> 6,400,000 | J8: ='Räkna på nyttorna'!Q23 -> 6,400,000 | K8: ='Räkna på nyttorna'!R23 -> 6,400,000 | L8: ='Räkna på nyttorna'!S23 -> 32,000,000 | M8: ='Räkna på nyttorna'!T23 -> 7,000,000 | N8: ='Räkna på nyttorna'!U23 -> 75,000,000 | O8: 35,600,000 | P8: 43%
B9: 3 | C9: 2. Omfördelningsnytta | D9: ='Räkna på nyttorna'!C39 -> Frigjord tid för utvecklare som åtgärdar användbarhetsproblem i efterhand | E9: Inera | F9: ='Räkna på nyttorna'!M40 -> 0 | G9: ='Räkna på nyttorna'!N40 -> 0 | H9: ='Räkna på nyttorna'!O40 -> 3,240,000 | I9: ='Räkna på nyttorna'!P40 -> 3,240,000 | J9: ='Räkna på nyttorna'!Q40 -> 3,240,000 | K9: ='Räkna på nyttorna'!R40 -> 3,240,000 | L9: ='Räkna på nyttorna'!S40 -> 12,960,000 | M9: ='Räkna på nyttorna'!T40 -> 6,912,000 | N9: ='Räkna på nyttorna'!U40 -> 20,160,000 | O9: 13,190,400 | P9: 20%
B10: 4 | C10: 2. Omfördelningsnytta | D10: ='Räkna på nyttorna'!C56 -> Frigjord tid för Ineras kundtjänst | E10: Inera | F10: ='Räkna på nyttorna'!M57 -> 0 | G10: ='Räkna på nyttorna'!N57 -> 0 | H10: ='Räkna på nyttorna'!O57 -> 700,000 | I10: ='Räkna på nyttorna'!P57 -> 700,000 | J10: ='Räkna på nyttorna'!Q57 -> 700,000 | K10: ='Räkna på nyttorna'!R57 -> 700,000 | L10: ='Räkna på nyttorna'!S57 -> 2,800,000 | M10: ='Räkna på nyttorna'!T57 -> 1,400,000 | N10: ='Räkna på nyttorna'!U57 -> 4,200,000 | O10: 2,800,000 | P10: 20%
B11: 5 | C11: 2. Omfördelningsnytta | D11: ='Räkna på nyttorna'!C73 -> Frigjord tid för invånare genom ökad användbarhet - exempel inloggning 1177.se | E11: Invånare | F11: ='Räkna på nyttorna'!M74 -> 0 | G11: ='Räkna på nyttorna'!N74 -> 27,222,222 | H11: ='Räkna på nyttorna'!O74 -> 27,222,222 | I11: ='Räkna på nyttorna'!P74 -> 27,222,222 | J11: ='Räkna på nyttorna'!Q74 -> 27,222,222 | K11: ='Räkna på nyttorna'!R74 -> 27,222,222 | L11: ='Räkna på nyttorna'!S74 -> 136,111,111 | M11: ='Räkna på nyttorna'!T74 -> 97,222,222 | N11: ='Räkna på nyttorna'!U74 -> 175,000,000 | O11: 136,111,111 | P11: 11%
B12: 6 | D12: ='Räkna på nyttorna'!C90 -> 0 | F12: ='Räkna på nyttorna'!M91 -> 0 | G12: ='Räkna på nyttorna'!N91 -> 0 | H12: ='Räkna på nyttorna'!O91 -> 0 | I12: ='Räkna på nyttorna'!P91 -> 0 | J12: ='Räkna på nyttorna'!Q91 -> 0 | K12: ='Räkna på nyttorna'!R91 -> 0 | L12: ='Räkna på nyttorna'!S91 -> 0 | M12: ='Räkna på nyttorna'!T91 -> 0 | N12: ='Räkna på nyttorna'!U91 -> 0 | O12: 0
B13: 7 | D13: ='Räkna på nyttorna'!C107 -> 0 | F13: ='Räkna på nyttorna'!M108 -> 0 | G13: ='Räkna på nyttorna'!N108 -> 0 | H13: ='Räkna på nyttorna'!O108 -> 0 | I13: ='Räkna på nyttorna'!P108 -> 0 | J13: ='Räkna på nyttorna'!Q108 -> 0 | K13: ='Räkna på nyttorna'!R108 -> 0 | L13: ='Räkna på nyttorna'!S108 -> 0 | M13: ='Räkna på nyttorna'!T108 -> 0 | N13: ='Räkna på nyttorna'!U108 -> 0 | O13: 0
B14: 8 | D14: ='Räkna på nyttorna'!C124 -> 0 | F14: ='Räkna på nyttorna'!M125 -> 0 | G14: ='Räkna på nyttorna'!N125 -> 0 | H14: ='Räkna på nyttorna'!O125 -> 0 | I14: ='Räkna på nyttorna'!P125 -> 0 | J14: ='Räkna på nyttorna'!Q125 -> 0 | K14: ='Räkna på nyttorna'!R125 -> 0 | L14: ='Räkna på nyttorna'!S125 -> 0 | M14: ='Räkna på nyttorna'!T125 -> 0 | N14: ='Räkna på nyttorna'!U125 -> 0 | O14: 0
B15: 9 | D15: ='Räkna på nyttorna'!C141 -> 0 | F15: ='Räkna på nyttorna'!M142 -> 0 | G15: ='Räkna på nyttorna'!N142 -> 0 | H15: ='Räkna på nyttorna'!O142 -> 0 | I15: ='Räkna på nyttorna'!P142 -> 0 | J15: ='Räkna på nyttorna'!Q142 -> 0 | K15: ='Räkna på nyttorna'!R142 -> 0 | L15: ='Räkna på nyttorna'!S142 -> 0 | M15: ='Räkna på nyttorna'!T126 -> 0 | N15: ='Räkna på nyttorna'!U142 -> 0 | O15: 0
B16: 10 | D16: ='Räkna på nyttorna'!C158 -> 0 | F16: ='Räkna på nyttorna'!M159 -> 0 | G16: ='Räkna på nyttorna'!N159 -> 0 | H16: ='Räkna på nyttorna'!O159 -> 0 | I16: ='Räkna på nyttorna'!P159 -> 0 | J16: ='Räkna på nyttorna'!Q159 -> 0 | K16: ='Räkna på nyttorna'!R159 -> 0 | L16: ='Räkna på nyttorna'!S159 -> 0 | M16: ='Räkna på nyttorna'!T127 -> 0 | N16: ='Räkna på nyttorna'!U159 -> 0 | O16: 0
B17: 11 | D17: ='Räkna på nyttorna'!C175 -> 0 | F17: ='Räkna på nyttorna'!M176 -> 0 | G17: ='Räkna på nyttorna'!N176 -> 0 | H17: ='Räkna på nyttorna'!O176 -> 0 | I17: ='Räkna på nyttorna'!P176 -> 0 | J17: ='Räkna på nyttorna'!Q176 -> 0 | K17: ='Räkna på nyttorna'!R176 -> 0 | L17: ='Räkna på nyttorna'!S176 -> 0 | M17: ='Räkna på nyttorna'!T176 -> 0 | N17: ='Räkna på nyttorna'!U176 -> 0 | O17: 0
B18: 12 | D18: ='Räkna på nyttorna'!C192 -> 0 | F18: ='Räkna på nyttorna'!M193 -> 0 | G18: ='Räkna på nyttorna'!N193 -> 0 | H18: ='Räkna på nyttorna'!O193 -> 0 | I18: ='Räkna på nyttorna'!P193 -> 0 | J18: ='Räkna på nyttorna'!Q193 -> 0 | K18: ='Räkna på nyttorna'!R193 -> 0 | L18: ='Räkna på nyttorna'!S193 -> 0 | M18: ='Räkna på nyttorna'!T193 -> 0 | N18: ='Räkna på nyttorna'!U193 -> 0 | O18: 0
B19: 13 | D19: ='Räkna på nyttorna'!C209 -> 0 | F19: ='Räkna på nyttorna'!M210 -> 0 | G19: ='Räkna på nyttorna'!N210 -> 0 | H19: ='Räkna på nyttorna'!O210 -> 0 | I19: ='Räkna på nyttorna'!P210 -> 0 | J19: ='Räkna på nyttorna'!Q210 -> 0 | K19: ='Räkna på nyttorna'!R210 -> 0 | L19: ='Räkna på nyttorna'!S210 -> 0 | M19: ='Räkna på nyttorna'!T210 -> 0 | N19: ='Räkna på nyttorna'!U210 -> 0 | O19: 0
B20: 14 | D20: ='Räkna på nyttorna'!C226 -> 0 | F20: ='Räkna på nyttorna'!M227 -> 0 | G20: ='Räkna på nyttorna'!N227 -> 0 | H20: ='Räkna på nyttorna'!O227 -> 0 | I20: ='Räkna på nyttorna'!P227 -> 0 | J20: ='Räkna på nyttorna'!Q227 -> 0 | K20: ='Räkna på nyttorna'!R227 -> 0 | L20: ='Räkna på nyttorna'!S227 -> 0 | M20: ='Räkna på nyttorna'!T227 -> 0 | N20: ='Räkna på nyttorna'!U227 -> 0 | O20: 0
B21: 15 | D21: ='Räkna på nyttorna'!C243 -> 0 | F21: ='Räkna på nyttorna'!M244 -> 0 | G21: ='Räkna på nyttorna'!N244 -> 0 | H21: ='Räkna på nyttorna'!O244 -> 0 | I21: ='Räkna på nyttorna'!P244 -> 0 | J21: ='Räkna på nyttorna'!Q244 -> 0 | K21: ='Räkna på nyttorna'!R244 -> 0 | L21: ='Räkna på nyttorna'!S244 -> 0 | M21: ='Räkna på nyttorna'!T244 -> 0 | N21: ='Räkna på nyttorna'!U244 -> 0 | O21: 0
B22: 16 | D22: ='Räkna på nyttorna'!C260 -> 0 | F22: ='Räkna på nyttorna'!M261 -> 0 | G22: ='Räkna på nyttorna'!N261 -> 0 | H22: ='Räkna på nyttorna'!O261 -> 0 | I22: ='Räkna på nyttorna'!P261 -> 0 | J22: ='Räkna på nyttorna'!Q261 -> 0 | K22: ='Räkna på nyttorna'!R261 -> 0 | L22: ='Räkna på nyttorna'!S261 -> 0 | M22: ='Räkna på nyttorna'!T261 -> 0 | N22: ='Räkna på nyttorna'!U261 -> 0 | O22: 0
B23: 17 | D23: ='Räkna på nyttorna'!C277 -> 0 | F23: ='Räkna på nyttorna'!M278 -> 0 | G23: ='Räkna på nyttorna'!N278 -> 0 | H23: ='Räkna på nyttorna'!O278 -> 0 | I23: ='Räkna på nyttorna'!P278 -> 0 | J23: ='Räkna på nyttorna'!Q278 -> 0 | K23: ='Räkna på nyttorna'!R278 -> 0 | L23: ='Räkna på nyttorna'!S278 -> 0 | M23: ='Räkna på nyttorna'!T278 -> 0 | N23: ='Räkna på nyttorna'!U278 -> 0 | O23: 0
B24: 18 | D24: ='Räkna på nyttorna'!C294 -> 0 | F24: ='Räkna på nyttorna'!M295 -> 0 | G24: ='Räkna på nyttorna'!N295 -> 0 | H24: ='Räkna på nyttorna'!O295 -> 0 | I24: ='Räkna på nyttorna'!P295 -> 0 | J24: ='Räkna på nyttorna'!Q295 -> 0 | K24: ='Räkna på nyttorna'!R295 -> 0 | L24: ='Räkna på nyttorna'!S295 -> 0 | M24: ='Räkna på nyttorna'!T295 -> 0 | N24: ='Räkna på nyttorna'!U295 -> 0 | O24: 0
B25: 19 | D25: ='Räkna på nyttorna'!C311 -> 0 | F25: ='Räkna på nyttorna'!M312 -> 0 | G25: ='Räkna på nyttorna'!N312 -> 0 | H25: ='Räkna på nyttorna'!O312 -> 0 | I25: ='Räkna på nyttorna'!P312 -> 0 | J25: ='Räkna på nyttorna'!Q312 -> 0 | K25: ='Räkna på nyttorna'!R312 -> 0 | L25: ='Räkna på nyttorna'!S312 -> 0 | M25: ='Räkna på nyttorna'!T312 -> 0 | N25: ='Räkna på nyttorna'!U312 -> 0 | O25: 0
B26: 20 | D26: ='Räkna på nyttorna'!C328 -> 0 | F26: ='Räkna på nyttorna'!M329 -> 0 | G26: ='Räkna på nyttorna'!N329 -> 0 | H26: ='Räkna på nyttorna'!O329 -> 0 | I26: ='Räkna på nyttorna'!P329 -> 0 | J26: ='Räkna på nyttorna'!Q329 -> 0 | K26: ='Räkna på nyttorna'!R329 -> 0 | L26: ='Räkna på nyttorna'!S329 -> 0 | M26: ='Räkna på nyttorna'!T329 -> 0 | N26: ='Räkna på nyttorna'!U329 -> 0 | O26: 0
B27: 21 | D27: ='Räkna på nyttorna'!K346 -> 0 | F27: ='Räkna på nyttorna'!M346 -> 0 | G27: ='Räkna på nyttorna'!N346 -> 0 | H27: ='Räkna på nyttorna'!O346 -> 0 | I27: ='Räkna på nyttorna'!P346 -> 0 | J27: ='Räkna på nyttorna'!Q346 -> 0 | K27: ='Räkna på nyttorna'!R346 -> 0 | L27: ='Räkna på nyttorna'!S346 -> 0 | M27: ='Räkna på nyttorna'!T346 -> 0 | N27: ='Räkna på nyttorna'!U346 -> 0 | O27: 0
B28: Summa | F28: =SUBTOTAL(109,Nyttor[år 1]) -> 0 | G28: =SUBTOTAL(109,Nyttor[år 2]) -> 49,622,222 | H28: =SUBTOTAL(109,Nyttor[år 3]) -> 53,562,222 | I28: =SUBTOTAL(109,Nyttor[år 4]) -> 53,562,222 | J28: =SUBTOTAL(109,Nyttor[år 5]) -> 53,562,222 | K28: =SUBTOTAL(109,Nyttor[år 6]) -> 53,562,222 | L28: =SUBTOTAL(109,Nyttor[Summa]) -> 263,871,111 | M28: =SUM(Nyttor[Min]) -> 133,534,222 | N28: =SUM(Nyttor[Max]) -> 424,360,000 | O28: =SUBTOTAL(109,Nyttor[Vägt medel]) -> 269,901,511

Sheet Kostnader
B1: Kostnader
B2: =IF(Försättsblad!B6=0,"",Försättsblad!B6) -> UX-ramverket
C4: Ange kostnadskategori - genom att välja i rullisten. | D4: Ange ett kortfattat men beskrivande namn på kostnaden, exempelvis "personalkostnad, "konsultkostnad," etc. | E4: Angeför vilken intressent kostnaden uppstår. Ange en ny rad per intressent om kostnaden uppstår hos fler intressenter. | F4: Skriv kostnaden per år. | M4: Om möjligt estimera ett min- och ett max värde.
F5: =Startår -> 2020 | G5: =F5+1 -> 2021 | H5: =G5+1 -> 2022 | I5: 2023 | J5: 2024 | K5: 2025
B6: ID | C6: Kostnadskategori | D6: Kostnadens namn | E6: Intressent | F6: år 1 | G6: år 2 | H6: år 3 | I6: år 4 | J6: år 5 | K6: år 6 | L6: Summa | M6: Min | N6: Max | O6: Vägt medel | P6: Osäkerhet
B7: 1 | C7: 4. Projekt | D7: UX-ramverket fas 1 | E7: Inera | F7: 1,400,000 | L7: =SUM(F7:K7) -> 1,400,000 | M7: =0.8*Kostnader[[#This Row],[Summa]] -> 1,120,000 | N7: =1.2*Kostnader[[#This Row],[Min]] -> 1,344,000 | O7: =IF(OR(ISBLANK(N7),ISBLANK(M7),ISBLANK(L7)),"",(N7+M7+3*L7)/5) -> 1,332,800 | P7: =IF(OR(ISBLANK(L7),L7=0),"",(N7-M7)/5/L7) -> 3%
B8: 2 | C8: 4. Projekt | D8: Ux-ramverket fas 2 | E8: Inera | F8: 1,400,000 | L8: 1,400,000 | M8: =0.8*Kostnader[[#This Row],[Summa]] -> 1,120,000 | N8: =1.2*Kostnader[[#This Row],[Min]] -> 1,344,000 | O8: 1,332,800 | P8: 3%
B9: 3 | C9: 4. Projekt | D9: UX-ramverket fas 3 | E9: Inera | G9: 2,000,000 | L9: 2,000,000 | M9: =0.8*Kostnader[[#This Row],[Summa]] -> 1,600,000 | N9: =1.2*Kostnader[[#This Row],[Min]] -> 1,920,000 | O9: 1,904,000 | P9: 3%
B10: 4 | C10: 2. Löpande verksamhetskostnader | D10: Förvaltning | E10: Inera | H10: 1,400,000 | I10: 1,800,000 | J10: 1,800,000 | K10: 1,800,000 | L10: 6,800,000 | M10: =0.8*Kostnader[[#This Row],[Summa]] -> 5,440,000 | N10: =1.2*Kostnader[[#This Row],[Min]] -> 6,528,000 | O10: 6,473,600 | P10: 3%
B11: 5 | L11: 0 | M11: =0.8*Kostnader[[#This Row],[Summa]] -> 0 | N11: =1.2*Kostnader[[#This Row],[Min]] -> 0 | O11: 0
B12: 6 | L12: 0 | M12: =0.8*Kostnader[[#This Row],[Summa]] -> 0 | N12: =1.2*Kostnader[[#This Row],[Min]] -> 0 | O12: 0
B13: 7 | L13: 0 | M13: =0.8*Kostnader[[#This Row],[Summa]] -> 0 | N13: =1.2*Kostnader[[#This Row],[Min]] -> 0 | O13: 0
B14: 8 | L14: 0 | M14: =0.8*Kostnader[[#This Row],[Summa]] -> 0 | N14: =1.2*Kostnader[[#This Row],[Min]] -> 0 | O14: 0
B15: 9 | L15: 0 | M15: =0.8*Kostnader[[#This Row],[Summa]] -> 0 | N15: =1.2*Kostnader[[#This Row],[Min]] -> 0 | O15: 0
B16: 10 | L16: 0 | M16: =0.8*Kostnader[[#This Row],[Summa]] -> 0 | N16: =1.2*Kostnader[[#This Row],[Min]] -> 0 | O16: 0
B17: 11 | L17: 0 | M17: =0.8*Kostnader[[#This Row],[Summa]] -> 0 | N17: =1.2*Kostnader[[#This Row],[Min]] -> 0 | O17: 0
B18: 12 | L18: 0 | M18: =0.8*Kostnader[[#This Row],[Summa]] -> 0 | N18: =1.2*Kostnader[[#This Row],[Min]] -> 0 | O18: 0
B19: 13 | L19: 0 | M19: =0.8*Kostnader[[#This Row],[Summa]] -> 0 | N19: =1.2*Kostnader[[#This Row],[Min]] -> 0 | O19: 0
B20: 14 | L20: 0 | M20: =0.8*Kostnader[[#This Row],[Summa]] -> 0 | N20: =1.2*Kostnader[[#This Row],[Min]] -> 0 | O20: 0
B21: 15 | L21: 0 | M21: =0.8*Kostnader[[#This Row],[Summa]] -> 0 | N21: =1.2*Kostnader[[#This Row],[Min]] -> 0 | O21: 0
B22: 16 | L22: 0 | M22: =0.8*Kostnader[[#This Row],[Summa]] -> 0 | N22: =1.2*Kostnader[[#This Row],[Min]] -> 0 | O22: 0
B23: 17 | L23: 0 | M23: =0.8*Kostnader[[#This Row],[Summa]] -> 0 | N23: =1.2*Kostnader[[#This Row],[Min]] -> 0 | O23: 0
B24: 18 | L24: 0 | M24: =0.8*Kostnader[[#This Row],[Summa]] -> 0 | N24: =1.2*Kostnader[[#This Row],[Min]] -> 0 | O24: 0
B25: 19 | L25: 0 | M25: =0.8*Kostnader[[#This Row],[Summa]] -> 0 | N25: =1.2*Kostnader[[#This Row],[Min]] -> 0 | O25: 0
B26: 20 | L26: 0 | M26: =0.8*Kostnader[[#This Row],[Summa]] -> 0 | N26: =1.2*Kostnader[[#This Row],[Min]] -> 0 | O26: 0
B27: 21 | L27: 0 | M27: =0.8*Kostnader[[#This Row],[Summa]] -> 0 | N27: =1.2*Kostnader[[#This Row],[Min]] -> 0 | O27: 0
B28: Summa | F28: =SUBTOTAL(109,Kostnader[år 1]) -> 2,800,000 | G28: =SUBTOTAL(109,Kostnader[år 2]) -> 2,000,000 | H28: =SUBTOTAL(109,Kostnader[år 3]) -> 1,400,000 | I28: =SUBTOTAL(109,Kostnader[år 4]) -> 1,800,000 | J28: =SUBTOTAL(109,Kostnader[år 5]) -> 1,800,000 | K28: =SUBTOTAL(109,Kostnader[år 6]) -> 1,800,000 | L28: =SUBTOTAL(109,Kostnader[Summa]) -> 11,600,000 | M28: =SUBTOTAL(109,Kostnader[Min]) -> 9,280,000 | N28: =SUBTOTAL(109,Kostnader[Max]) -> 11,136,000 | O28: =SUBTOTAL(109,Kostnader[Vägt medel]) -> 11,043,200
J30: Total snittkostnad per år | L30: =Kostnader[[#Totals],[Summa]]/6 -> 1,933,333
J32: Projektkostnad totalt | L32: =L7+L8+L9 -> 4,800,000

Sheet Nyttokalkyl
D1: Nyttokalkyl
D2: =IF(Försättsblad!B6=0,"",Försättsblad!B6) -> UX-ramverket
D3: Tabellerna och diagrammen är formaterade för att passa i powerpoint-presentationer.
D4: Markera och kopiera tabellen eller diagrammet och välj att "klistra in som bild" för ett snyggt resultat.
D6: Total nytta
D9: Nyttorealiseringskalkyl - total nytta | I9: Nyttorealiseringskalkyl - total nytta
D10: För perioden | E10: =Startår & " - " & Startår+5 -> 2020 - 2025
J11: =Startår -> 2020 | K11: =J11+1 -> 2021 | L11: =K11+1 -> 2022 | M11: 2023 | N11: =M11+1 -> 2024 | O11: =N11+1 -> 2025 | P11: Totalt
D12: Total kostnad | E12: =TotalKostnad -> -11,600,000 kr | I12: Total nytta | J12: =J13+J14 -> 0 | K12: =K13+K14 -> 22,400,000 | L12: 26,340,000 | M12: 26,340,000 | N12: 26,340,000 | O12: 26,340,000 | P12: 127,760,000
D13: Finansiell nytta | E13: =P13 -> 0 | I13: Finansiella nyttor | J13: =IFERROR(GETPIVOTDATA("Summa av år 1",'-Admin-'!$C$25,"Nyttokategori","1. Finansiell"),0) -> 0 | K13: =IFERROR(GETPIVOTDATA("Summa av år 2",'-Admin-'!$C$25,"Nyttokategori","1. Finansiell"),0) -> 0 | L13: =IFERROR(GETPIVOTDATA("Summa av år 3",'-Admin-'!$C$25,"Nyttokategori","1. Finansiell"),0) -> 0 | M13: =IFERROR(GETPIVOTDATA("Summa av år 4",'-Admin-'!$C$25,"Nyttokategori","1. Finansiell"),0) -> 0 | N13: =IFERROR(GETPIVOTDATA("Summa av år 5",'-Admin-'!$C$25,"Nyttokategori","1. Finansiell"),0) -> 0 | O13: =IFERROR(GETPIVOTDATA("Summa av år 6",'-Admin-'!$C$25,"Nyttokategori","1. Finansiell"),0) -> 0 | P13: =SUM(J13:O13) -> 0
D14: Omfördelningsnytta | E14: =P14 -> 127,760,000 kr | I14: Omfördelningsnyttor | J14: =IFERROR(GETPIVOTDATA("Summa av år 1",'-Admin-'!$C$25,"Nyttokategori","2. Omfördelningsnytta"),0) -> 0 | K14: =IFERROR(GETPIVOTDATA("Summa av år 2",'-Admin-'!$C$25,"Nyttokategori","2. Omfördelningsnytta"),0) -> 22,400,000 | L14: =IFERROR(GETPIVOTDATA("Summa av år 3",'-Admin-'!$C$25,"Nyttokategori","2. Omfördelningsnytta"),0) -> 26,340,000 | M14: =IFERROR(GETPIVOTDATA("Summa av år 4",'-Admin-'!$C$25,"Nyttokategori","2. Omfördelningsnytta"),0) -> 26,340,000 | N14: =IFERROR(GETPIVOTDATA("Summa av år 5",'-Admin-'!$C$25,"Nyttokategori","2. Omfördelningsnytta"),0) -> 26,340,000 | O14: =IFERROR(GETPIVOTDATA("Summa av år 6",'-Admin-'!$C$25,"Nyttokategori","2. Omfördelningsnytta"),0) -> 26,340,000 | P14: =SUM(J14:O14) -> 127,760,000
D15: Total nytta | E15: =TotalNytta -> 127,760,000 kr
D16: Total nettonytta | E16: =NettoNytta -> 116,160,000 kr | I16: Total kostnad | J16: =SUM(J17:J20) -> -2,800,000 | K16: =SUM(K17:K20) -> -2,000,000 | L16: -1,400,000 | M16: -1,800,000 | N16: -1,800,000 | O16: -1,800,000 | P16: -11,600,000
I17: Verksamhets-förändring | J17: =IFERROR(-GETPIVOTDATA("Summa av År 1",'-Admin-'!$C$32,"Kostnadskategori","1. Verksamhetsförändring"),0) -> 0 | K17: =IFERROR(-GETPIVOTDATA("Summa av År 2",'-Admin-'!$C$32,"Kostnadskategori","1. Verksamhetsförändring"),0) -> 0 | L17: =IFERROR(-GETPIVOTDATA("Summa av År 3",'-Admin-'!$C$32,"Kostnadskategori","1. Verksamhetsförändring"),0) -> 0 | M17: =IFERROR(-GETPIVOTDATA("Summa av År 4",'-Admin-'!$C$32,"Kostnadskategori","1. Verksamhetsförändring"),0) -> 0 | N17: =IFERROR(-GETPIVOTDATA("Summa av År 5",'-Admin-'!$C$32,"Kostnadskategori","1. Verksamhetsförändring"),0) -> 0 | O17: =IFERROR(GETPIVOTDATA("Summa av År 6",'-Admin-'!$C$32,"Kostnadskategori","1. Verksamhetsförändring"),0) -> 0 | P17: =SUM(J17:O17) -> 0
D18: Return on investment (ROI) | E18: =IF(-TotalKostnad=0,0,TotalNettoNytta/-TotalKostnad) -> 10.01 kr | I18: Löpande verksamhets-kostnader | J18: =IFERROR(-GETPIVOTDATA("Summa av År 1",'-Admin-'!$C$32,"Kostnadskategori","2. Löpande verksamhetskostnader"),0) -> 0 | K18: =IFERROR(-GETPIVOTDATA("Summa av År 2",'-Admin-'!$C$32,"Kostnadskategori","2. Löpande verksamhetskostnader"),0) -> 0 | L18: =IFERROR(-GETPIVOTDATA("Summa av År 3",'-Admin-'!$C$32,"Kostnadskategori","2. Löpande verksamhetskostnader"),0) -> -1,400,000 | M18: =IFERROR(-GETPIVOTDATA("Summa av År 4",'-Admin-'!$C$32,"Kostnadskategori","2. Löpande verksamhetskostnader"),0) -> -1,800,000 | N18: =IFERROR(-GETPIVOTDATA("Summa av År 5",'-Admin-'!$C$32,"Kostnadskategori","2. Löpande verksamhetskostnader"),0) -> -1,800,000 | O18: =IFERROR(-GETPIVOTDATA("Summa av År 6",'-Admin-'!$C$32,"Kostnadskategori","2. Löpande verksamhetskostnader"),0) -> -1,800,000 | P18: =SUM(J18:O18) -> -6,800,000
D19: Payback-år | E19: =IF('-Admin-'!D103=0,"Ingen payback",'-Admin-'!D103) -> 2021 | I19: Investeringar | J19: =IFERROR(-GETPIVOTDATA("Summa av År 1",'-Admin-'!$C$32,"Kostnadskategori","3. Investeringar"),0) -> 0 | K19: =IFERROR(-GETPIVOTDATA("Summa av År 2",'-Admin-'!$C$32,"Kostnadskategori","3. Investeringar"),0) -> 0 | L19: =IFERROR(-GETPIVOTDATA("Summa av År 3",'-Admin-'!$C$32,"Kostnadskategori","3. Investeringar"),0) -> 0 | M19: =IFERROR(-GETPIVOTDATA("Summa av År 4",'-Admin-'!$C$32,"Kostnadskategori","3. Investeringar"),0) -> 0 | N19: =IFERROR(-GETPIVOTDATA("Summa av År 5",'-Admin-'!$C$32,"Kostnadskategori","3. Investeringar"),0) -> 0 | O19: =IFERROR(-GETPIVOTDATA("Summa av År 6",'-Admin-'!$C$32,"Kostnadskategori","3. Investeringar"),0) -> 0 | P19: =SUM(J19:O19) -> 0
I20: Projekt | J20: =IFERROR(-GETPIVOTDATA("Summa av År 1",'-Admin-'!$C$32,"Kostnadskategori","4. Projekt"),0) -> -2,800,000 | K20: =IFERROR(-GETPIVOTDATA("Summa av År 2",'-Admin-'!$C$32,"Kostnadskategori","4. Projekt"),0) -> -2,000,000 | L20: =IFERROR(-GETPIVOTDATA("Summa av År 3",'-Admin-'!$C$32,"Kostnadskategori","4. Projekt"),0) -> 0 | M20: =IFERROR(-GETPIVOTDATA("Summa av År 4",'-Admin-'!$C$32,"Kostnadskategori","4. Projekt"),0) -> 0 | N20: =IFERROR(-GETPIVOTDATA("Summa av År 5",'-Admin-'!$C$32,"Kostnadskategori","4. Projekt"),0) -> 0 | O20: =IFERROR(-GETPIVOTDATA("Summa av År 6",'-Admin-'!$C$32,"Kostnadskategori","4. Projekt"),0) -> 0 | P20: -4,800,000
D21: Return on investment (ROI) är intjänad värderad nytta per investerad krona. Payback-år är året då de värderade nyttorna förväntas överstiga kostnaderna.
I22: Finansiell nettonytta | J22: =J13+J16 -> -2,800,000 | K22: =K13+K16 -> -2,000,000 | L22: -1,400,000 | M22: -1,800,000 | N22: -1,800,000 | O22: -1,800,000 | P22: =P13+P16 -> -11,600,000
I23: Ackumulerad finansiell nettonytta | J23: =J14+J16 -> -2,800,000 | K23: =IF(K22=0,J23,J23+K22) -> -4,800,000 | L23: =IF(L22=0,K23,K23+L22) -> -6,200,000 | M23: =IF(M22=0,L23,L23+M22) -> -8,000,000 | N23: =IF(N22=0,M23,M23+N22) -> -9,800,000 | O23: =IF(O22=0,N23,N23+O22) -> -11,600,000 | P23: =O23 -> -11,600,000
I24: Omfördelnings-nettonytta | J24: =J14+J16 -> -2,800,000 | K24: =K14+K16 -> 20,400,000 | L24: 24,940,000 | M24: 24,540,000 | N24: 24,540,000 | O24: 24,540,000 | P24: =P14+P16 -> 116,160,000
I25: Ackumulerad omfördelnings-nettonytta | J25: =J26 -> -2,800,000 | K25: =IF(K24=0,J25,J25+K24) -> 17,600,000 | L25: =IF(L24=0,K25,K25+L24) -> 42,540,000 | M25: =IF(M24=0,L25,L25+M24) -> 67,080,000 | N25: =IF(N24=0,M25,M25+N24) -> 91,620,000 | O25: =IF(O24=0,N25,N25+O24) -> 116,160,000 | P25: =O25 -> 116,160,000
I26: Nettonytta | J26: =J12+J16 -> -2,800,000 | K26: 20,400,000 | L26: 24,940,000 | M26: 24,540,000 | N26: 24,540,000 | O26: 24,540,000 | P26: 116,160,000
I27: Ackumulerad nettonytta | J27: =J26 -> -2,800,000 | K27: =IF(K26=0,J27,J27+K26) -> 17,600,000 | L27: =IF(L26=0,K27,K27+L26) -> 42,540,000 | M27: =IF(M26=0,L27,L27+M26) -> 67,080,000 | N27: =IF(N26=0,M27,M27+N26) -> 91,620,000 | O27: =IF(O26=0,N27,N27+O26) -> 116,160,000 | P27: =O27 -> 116,160,000
D57: Finansiell nytta
D60: Nyttorealiseringskalkyl - finansiel nytta | I60: Nyttorealiseringskalkyl - finansiell nytta
D61: För perioden | E61: =Startår & " - " & Startår+5 -> 2020 - 2025
J62: =Startår -> 2020 | K62: =J62+1 -> 2021 | L62: =K62+1 -> 2022 | M62: =L62+1 -> 2023 | N62: =M62+1 -> 2024 | O62: =N62+1 -> 2025 | P62: Totalt
D63: Total kostnad | E63: =TotalKostnad -> -11,600,000 kr | I63: Finansiella nyttor | J63: =IFERROR(GETPIVOTDATA("Summa av år 1",'-Admin-'!$C$25,"Nyttokategori","1. Finansiell"),0) -> 0 | K63: =IFERROR(GETPIVOTDATA("Summa av år 2",'-Admin-'!$C$25,"Nyttokategori","1. Finansiell"),0) -> 0 | L63: =IFERROR(GETPIVOTDATA("Summa av år 3",'-Admin-'!$C$25,"Nyttokategori","1. Finansiell"),0) -> 0 | M63: =IFERROR(GETPIVOTDATA("Summa av år 4",'-Admin-'!$C$25,"Nyttokategori","1. Finansiell"),0) -> 0 | N63: =IFERROR(GETPIVOTDATA("Summa av år 5",'-Admin-'!$C$25,"Nyttokategori","1. Finansiell"),0) -> 0 | O63: =IFERROR(GETPIVOTDATA("Summa av år 6",'-Admin-'!$C$25,"Nyttokategori","1. Finansiell"),0) -> 0 | P63: =SUM(J63:O63) -> 0
D64: Total finansiell nytta | E64: =P63 -> 0
D65: Finansiell nettonytta | E65: =P71 -> -11,600,000 kr | I65: Total kostnad | J65: =SUM(J66:J69) -> -2,800,000 | K65: =SUM(K66:K69) -> -2,000,000 | L65: -1,400,000 | M65: -1,800,000 | N65: -1,800,000 | O65: -1,800,000 | P65: -11,600,000
I66: Verksamhets-förändring | J66: =IFERROR(-GETPIVOTDATA("Summa av År 1",'-Admin-'!$C$32,"Kostnadskategori","1. Verksamhetsförändring"),0) -> 0 | K66: =IFERROR(-GETPIVOTDATA("Summa av År 2",'-Admin-'!$C$32,"Kostnadskategori","1. Verksamhetsförändring"),0) -> 0 | L66: =IFERROR(-GETPIVOTDATA("Summa av År 3",'-Admin-'!$C$32,"Kostnadskategori","1. Verksamhetsförändring"),0) -> 0 | M66: =IFERROR(-GETPIVOTDATA("Summa av År 4",'-Admin-'!$C$32,"Kostnadskategori","1. Verksamhetsförändring"),0) -> 0 | N66: =IFERROR(-GETPIVOTDATA("Summa av År 5",'-Admin-'!$C$32,"Kostnadskategori","1. Verksamhetsförändring"),0) -> 0 | O66: =IFERROR(-GETPIVOTDATA("Summa av År 6",'-Admin-'!$C$32,"Kostnadskategori","1. Verksamhetsförändring"),0) -> 0 | P66: =SUM(J66:O66) -> 0
D67: Return on investment (ROI) | E67: =IF(-P65=0,0,P71/-P65) -> -1.00 kr | I67: Löpande verksamhets-kostnader | J67: =IFERROR(-GETPIVOTDATA("Summa av År 1",'-Admin-'!$C$32,"Kostnadskategori","2. Löpande verksamhetskostnader"),0) -> 0 | K67: =IFERROR(-GETPIVOTDATA("Summa av År 2",'-Admin-'!$C$32,"Kostnadskategori","2. Löpande verksamhetskostnader"),0) -> 0 | L67: =IFERROR(-GETPIVOTDATA("Summa av År 3",'-Admin-'!$C$32,"Kostnadskategori","2. Löpande verksamhetskostnader"),0) -> -1,400,000 | M67: =IFERROR(-GETPIVOTDATA("Summa av År 4",'-Admin-'!$C$32,"Kostnadskategori","2. Löpande verksamhetskostnader"),0) -> -1,800,000 | N67: =IFERROR(-GETPIVOTDATA("Summa av År 5",'-Admin-'!$C$32,"Kostnadskategori","2. Löpande verksamhetskostnader"),0) -> -1,800,000 | O67: =IFERROR(-GETPIVOTDATA("Summa av År 6",'-Admin-'!$C$32,"Kostnadskategori","2. Löpande verksamhetskostnader"),0) -> -1,800,000 | P67: =SUM(J67:O67) -> -6,800,000
D68: Payback-år | E68: ='-Admin-'!D112 -> Ingen payback | I68: Investeringar | J68: =IFERROR(-GETPIVOTDATA("Summa av År 1",'-Admin-'!$C$32,"Kostnadskategori","3. Investeringar"),0) -> 0 | K68: =IFERROR(-GETPIVOTDATA("Summa av År 2",'-Admin-'!$C$32,"Kostnadskategori","3. Investeringar"),0) -> 0 | L68: =IFERROR(-GETPIVOTDATA("Summa av År 3",'-Admin-'!$C$32,"Kostnadskategori","3. Investeringar"),0) -> 0 | M68: =IFERROR(-GETPIVOTDATA("Summa av År 4",'-Admin-'!$C$32,"Kostnadskategori","3. Investeringar"),0) -> 0 | N68: =IFERROR(-GETPIVOTDATA("Summa av År 5",'-Admin-'!$C$32,"Kostnadskategori","3. Investeringar"),0) -> 0 | O68: =IFERROR(-GETPIVOTDATA("Summa av År 6",'-Admin-'!$C$32,"Kostnadskategori","3. Investeringar"),0) -> 0 | P68: =SUM(J68:O68) -> 0
I69: Projekt | J69: =IFERROR(-GETPIVOTDATA("Summa av År 1",'-Admin-'!$C$32,"Kostnadskategori","4. Projekt"),0) -> -2,800,000 | K69: =IFERROR(-GETPIVOTDATA("Summa av År 2",'-Admin-'!$C$32,"Kostnadskategori","4. Projekt"),0) -> -2,000,000 | L69: =IFERROR(-GETPIVOTDATA("Summa av År 3",'-Admin-'!$C$32,"Kostnadskategori","4. Projekt"),0) -> 0 | M69: =IFERROR(-GETPIVOTDATA("Summa av År 4",'-Admin-'!$C$32,"Kostnadskategori","4. Projekt"),0) -> 0 | N69: =IFERROR(-GETPIVOTDATA("Summa av År 5",'-Admin-'!$C$32,"Kostnadskategori","4. Projekt"),0) -> 0 | O69: =IFERROR(-GETPIVOTDATA("Summa av År 6",'-Admin-'!$C$32,"Kostnadskategori","4. Projekt"),0) -> 0 | P69: -4,800,000
I71: Finansiell nettonytta | J71: =J63+J65 -> -2,800,000 | K71: -2,000,000 | L71: -1,400,000 | M71: =M63+M65 -> -1,800,000 | N71: -1,800,000 | O71: -1,800,000 | P71: =P63+P65 -> -11,600,000
I72: Ackumulerad finansiell nettonytta | J72: =J63+J65 -> -2,800,000 | K72: =IF(K71=0,J72,J72+K71) -> -4,800,000 | L72: =IF(L71=0,K72,K72+L71) -> -6,200,000 | M72: =IF(M71=0,L72,L72+M71) -> -8,000,000 | N72: =IF(N71=0,M72,M72+N71) -> -9,800,000 | O72: =IF(O71=0,N72,N72+O71) -> -11,600,000 | P72: =O72 -> -11,600,000
D108: Omfördelningsnytta
D111: Nyttorealiseringskalkyl - omfördelningsnytta | I111: Nyttorealiseringskalkyl per år
D112: För perioden | E112: =Startår & " - " & Startår+5 -> 2020 - 2025
J113: =Startår -> 2020 | K113: =J113+1 -> 2021 | L113: =K113+1 -> 2022 | M113: =L113+1 -> 2023 | N113: =M113+1 -> 2024 | O113: =N113+1 -> 2025 | P113: Totalt
D114: Total kostnad | E114: =TotalKostnad -> -11,600,000 | I114: Omfördelningsnyttor | J114: =IFERROR(GETPIVOTDATA("Summa av år 1",'-Admin-'!$C$25,"Nyttokategori","2. Omfördelningsnytta"),0) -> 0 | K114: =IFERROR(GETPIVOTDATA("Summa av år 2",'-Admin-'!$C$25,"Nyttokategori","2. Omfördelningsnytta"),0) -> 22,400,000 | L114: =IFERROR(GETPIVOTDATA("Summa av år 3",'-Admin-'!$C$25,"Nyttokategori","2. Omfördelningsnytta"),0) -> 26,340,000 | M114: =IFERROR(GETPIVOTDATA("Summa av år 4",'-Admin-'!$C$25,"Nyttokategori","2. Omfördelningsnytta"),0) -> 26,340,000 | N114: =IFERROR(GETPIVOTDATA("Summa av år 5",'-Admin-'!$C$25,"Nyttokategori","2. Omfördelningsnytta"),0) -> 26,340,000 | O114: =IFERROR(GETPIVOTDATA("Summa av år 6",'-Admin-'!$C$25,"Nyttokategori","2. Omfördelningsnytta"),0) -> 26,340,000 | P114: =SUM(J114:O114) -> 127,760,000
D115: Total omfördelningsnytta | E115: =P114 -> 127,760,000
D116: Omfördelnings-nettonytta | E116: =P122 -> 116,160,000 | I116: Total kostnad | J116: =SUM(J117:J120) -> -2,800,000 | K116: =SUM(K117:K120) -> -2,000,000 | L116: -1,400,000 | M116: -1,800,000 | N116: -1,800,000 | O116: -1,800,000 | P116: -11,600,000
I117: Verksamhets-förändring | J117: =IFERROR(-GETPIVOTDATA("Summa av År 1",'-Admin-'!$C$32,"Kostnadskategori","1. Verksamhetsförändring"),0) -> 0 | K117: =IFERROR(-GETPIVOTDATA("Summa av År 2",'-Admin-'!$C$32,"Kostnadskategori","1. Verksamhetsförändring"),0) -> 0 | L117: =IFERROR(-GETPIVOTDATA("Summa av År 3",'-Admin-'!$C$32,"Kostnadskategori","1. Verksamhetsförändring"),0) -> 0 | M117: =IFERROR(-GETPIVOTDATA("Summa av År 4",'-Admin-'!$C$32,"Kostnadskategori","1. Verksamhetsförändring"),0) -> 0 | N117: =IFERROR(-GETPIVOTDATA("Summa av År 5",'-Admin-'!$C$32,"Kostnadskategori","1. Verksamhetsförändring"),0) -> 0 | O117: =IFERROR(-GETPIVOTDATA("Summa av År 6",'-Admin-'!$C$32,"Kostnadskategori","1. Verksamhetsförändring"),0) -> 0 | P117: =SUM(J117:O117) -> 0
D118: Return on investment (ROI) | E118: =IF(-P116=0,0,P122/-P116) -> 10.01 kr | I118: Löpande verksamhets-kostnader | J118: =IFERROR(-GETPIVOTDATA("Summa av År 1",'-Admin-'!$C$32,"Kostnadskategori","2. Löpande verksamhetskostnader"),0) -> 0 | K118: =IFERROR(-GETPIVOTDATA("Summa av År 2",'-Admin-'!$C$32,"Kostnadskategori","2. Löpande verksamhetskostnader"),0) -> 0 | L118: =IFERROR(-GETPIVOTDATA("Summa av År 3",'-Admin-'!$C$32,"Kostnadskategori","2. Löpande verksamhetskostnader"),0) -> -1,400,000 | M118: =IFERROR(-GETPIVOTDATA("Summa av År 4",'-Admin-'!$C$32,"Kostnadskategori","2. Löpande verksamhetskostnader"),0) -> -1,800,000 | N118: =IFERROR(-GETPIVOTDATA("Summa av År 5",'-Admin-'!$C$32,"Kostnadskategori","2. Löpande verksamhetskostnader"),0) -> -1,800,000 | O118: =IFERROR(-GETPIVOTDATA("Summa av År 6",'-Admin-'!$C$32,"Kostnadskategori","2. Löpande verksamhetskostnader"),0) -> -1,800,000 | P118: =SUM(J118:O118) -> -6,800,000
D119: Payback-år | E119: =IF('-Admin-'!D119=0,"Ingen payback",'-Admin-'!D119) -> 2021 | I119: Investeringar | J119: =IFERROR(-GETPIVOTDATA("Summa av År 1",'-Admin-'!$C$32,"Kostnadskategori","3. Investeringar"),0) -> 0 | K119: =IFERROR(-GETPIVOTDATA("Summa av År 2",'-Admin-'!$C$32,"Kostnadskategori","3. Investeringar"),0) -> 0 | L119: =IFERROR(-GETPIVOTDATA("Summa av År 3",'-Admin-'!$C$32,"Kostnadskategori","3. Investeringar"),0) -> 0 | M119: =IFERROR(-GETPIVOTDATA("Summa av År 4",'-Admin-'!$C$32,"Kostnadskategori","3. Investeringar"),0) -> 0 | N119: =IFERROR(-GETPIVOTDATA("Summa av År 5",'-Admin-'!$C$32,"Kostnadskategori","3. Investeringar"),0) -> 0 | O119: =IFERROR(-GETPIVOTDATA("Summa av År 6",'-Admin-'!$C$32,"Kostnadskategori","3. Investeringar"),0) -> 0 | P119: =SUM(J119:O119) -> 0
I120: Projekt | J120: =IFERROR(-GETPIVOTDATA("Summa av År 1",'-Admin-'!$C$32,"Kostnadskategori","4. Projekt"),0) -> -2,800,000 | K120: =IFERROR(-GETPIVOTDATA("Summa av År 2",'-Admin-'!$C$32,"Kostnadskategori","4. Projekt"),0) -> -2,000,000 | L120: =IFERROR(-GETPIVOTDATA("Summa av År 3",'-Admin-'!$C$32,"Kostnadskategori","4. Projekt"),0) -> 0 | M120: =IFERROR(-GETPIVOTDATA("Summa av År 4",'-Admin-'!$C$32,"Kostnadskategori","4. Projekt"),0) -> 0 | N120: =IFERROR(-GETPIVOTDATA("Summa av År 5",'-Admin-'!$C$32,"Kostnadskategori","4. Projekt"),0) -> 0 | O120: =IFERROR(-GETPIVOTDATA("Summa av År 6",'-Admin-'!$C$32,"Kostnadskategori","4. Projekt"),0) -> 0 | P120: -4,800,000
I122: Omfördelnings-nettonytta | J122: =J114+J116 -> -2,800,000 | K122: 20,400,000 | L122: 24,940,000 | M122: 24,540,000 | N122: 24,540,000 | O122: 24,540,000 | P122: 116,160,000
I123: Ackumulerad omfördelnings-nettonytta | J123: =J124 -> 0 | K123: =IF(K122=0,J123,J123+K122) -> 20,400,000 | L123: =IF(L122=0,K123,K123+L122) -> 45,340,000 | M123: =IF(M122=0,L123,L123+M122) -> 69,880,000 | N123: =IF(N122=0,M123,M123+N122) -> 94,420,000 | O123: =IF(O122=0,N123,N123+O122) -> 118,960,000 | P123: =O123 -> 118,960,000

Sheet -Admin- (hidden)
C1: Admin
C2: I den här fliken finns stödfunktioner som används i kalkylen. Redigera dem bara om du är säker på att du vill ändra hur mallen fungerar.
C5: Underlag för rullister i mallen
C6: Fördefinierade värden i rullisterna
C7: Grunden för att kunna redovisa nyttokalkylen uppdelad på typ av nytta.
C9: Nyttokategori
C10: 1. Finansiell
C11: 2. Omfördelningsnytta
C12: 3. Kvalitativ, mätbar
C14: Kostnadskategori
C15: 1. Verksamhetsförändring
C16: 2. Löpande verksamhetskostnader
C17: 3. Investeringar
C18: 4. Projekt
C21: Underlag för nyttokalkylen
C23: PivotNytta
C24: Nyttor
C25: Radetiketter | D25: Summa av år 1 | E25: Summa av År 2 | F25: Summa av År 3 | G25: Summa av År 4 | H25: Summa av År 5 | I25: Summa av År 6
C26: 2. Omfördelningsnytta | D26: 0 | E26: 22,400,000 | F26: 26,340,000 | G26: 26,340,000 | H26: 26,340,000 | I26: 26,340,000
C30: PivotKostnad
C31: Kostnader
C32: Radetiketter | D32: Summa av År 1 | E32: Summa av År 2 | F32: Summa av År 3 | G32: Summa av År 4 | H32: Summa av År 5 | I32: Summa av År 6
C33: 2. Löpande verksamhetskostnader | F33: 1,400,000 | G33: 1,800,000 | H33: 1,800,000 | I33: 1,800,000
C34: 4. Projekt | D34: 2,800,000 | E34: 2,000,000
C40: Underlag för några av diagrammen - övriga diagram hämtar sin data från sammanställningen på fliken Nyttokalkyl
C42: Diagram "Nyttor och kostnader"
D44: Finansiell nytta | E44: Omfördelningsnytta | F44: Total nytta | G44: Kostnad
C45: Nytta | D45: =Nyttokalkyl!$P$13 -> 0 | E45: =Nyttokalkyl!P14 -> 127,760,000 | F45: =D45+E45 -> 127,760,000
C46: Kostnad | G46: =-1*TotalKostnad -> 11,600,000
C48: PivotNyttaIntressent | F48: PivotKostnadIntressent | I48: PivotFinansiellNyttaIntressent | L48: PivotOmfördelningsnyttaIntressent
C49: Diagram "Nytta per intressent" | F49: Diagram "Kostnad per intressent" | I49: Diagram "Finansiell nytta per intressent" | L49: Diagram "Omfördelningsnytta nytta per intressent"
C50: Nyttokategori | D50: 2. Omfördelningsnytta | F50: Kostnadskategori | G50: (flera objekt) | I50: Nyttokategori | J50: (flera objekt) | L50: Nyttokategori | M50: 2. Omfördelningsnytta
C52: Radetiketter | D52: Summa av Summa | F52: Radetiketter | G52: Summa av Summa | I52: Radetiketter | J52: Summa av Summa | L52: Radetiketter | M52: Summa av Summa
C53: Inera | D53: 127,760,000 | F53: Inera | G53: 11,600,000 | I53: Totalsumma | L53: Inera | M53: 127,760,000
C54: Totalsumma | D54: 127,760,000 | F54: Totalsumma | G54: 11,600,000 | L54: Totalsumma | M54: 127,760,000
C67: PivotNyttaOsäkerhet | I67: PivotKostnadOsäkerhet
C68: PivotNytta - underlag till diagram "osäkerhetsanalys" | I68: PivotKostnad - underlag till diagram "osäkerhetsanalys"
C69: Radetiketter | D69: Summa av Min | E69: Summa av Summa | F69: Summa av Max | I69: Radetiketter | J69: Summa av Min | K69: Summa av Summa | L69: Summa av Max
C70: 2. Omfördelningsnytta | D70: 36,312,000 | E70: 127,760,000 | F70: 249,360,000 | I70: 2. Löpande verksamhetskostnader | J70: 5,440,000 | K70: 6,800,000 | L70: 6,528,000
C71: Totalsumma | D71: 36,312,000 | E71: 127,760,000 | F71: 249,360,000 | I71: 4. Projekt | J71: 3,840,000 | K71: 4,800,000 | L71: 4,608,000
I72: Totalsumma | J72: 9,280,000 | K72: 11,600,000 | L72: 11,136,000
C77: Diagram "Osäkerhetsanalys" Alla nyttor
D78: Nytta | E78: Kostnad | F78: Nettonytta
C79: Min | D79: =IFERROR(GETPIVOTDATA("Summa av Min",$C$69,"Nyttokategori","1. Finansiell"),0)+IFERROR(GETPIVOTDATA("Summa av Min",$C$69,"Nyttokategori","2. Omfördelningsnytta"),0) -> 36,312,000 | E79: =GETPIVOTDATA("Summa av Min",$I$69) -> 9,280,000 | F79: =D79-E81 -> 25,176,000
C80: Troligt | D80: =IFERROR(GETPIVOTDATA("Summa av Summa",$C$69,"Nyttokategori","1. Finansiell"),0)+IFERROR(GETPIVOTDATA("Summa av Summa",$C$69,"Nyttokategori","2. Omfördelningsnytta"),0) -> 127,760,000 | E80: =GETPIVOTDATA("Summa av Summa",$I$69) -> 11,600,000 | F80: =D80-E80 -> 116,160,000
C81: Max | D81: =IFERROR(GETPIVOTDATA("Summa av Max",$C$69,"Nyttokategori","1. Finansiell"),0)+IFERROR(GETPIVOTDATA("Summa av Max",$C$69,"Nyttokategori","2. Omfördelningsnytta"),0) -> 249,360,000 | E81: =GETPIVOTDATA("Summa av Max",$I$69) -> 11,136,000 | F81: =D81-E79 -> 240,080,000
C84: Diagram "Osäkerhetsanalys" Finansiella nyttor
D85: Finansiell nytta | E85: Kostnad | F85: Nettonytta
C86: Min | D86: =IFERROR(GETPIVOTDATA("Summa av Min",$C$69,"Nyttokategori","1. Finansiell"),0) -> 0 | E86: =GETPIVOTDATA("Summa av Min",$I$69) -> 9,280,000 | F86: =D86-E88 -> -11,136,000
C87: Troligt | D87: =IFERROR(GETPIVOTDATA("Summa av Summa",$C$69,"Nyttokategori","1. Finansiell"),0) -> 0 | E87: =GETPIVOTDATA("Summa av Summa",$I$69) -> 11,600,000 | F87: =D87-E87 -> -11,600,000
C88: Max | D88: =IFERROR(GETPIVOTDATA("Summa av Max",$C$69,"Nyttokategori","1. Finansiell"),0) -> 0 | E88: =GETPIVOTDATA("Summa av Max",$I$69) -> 11,136,000 | F88: =D88-E86 -> -9,280,000
C91: Diagram "Osäkerhetsanalys" Omfördelningsnyttor
D92: Omfördelningsnytta | E92: Kostnad | F92: Nettonytta
C93: Min | D93: =IFERROR(GETPIVOTDATA("Summa av Min",$C$69,"Nyttokategori","2. Omfördelningsnytta"),0) -> 36,312,000 | E93: =Kostnader[[#Totals],[Min]] -> 9,280,000 | F93: =D93-E95 -> 25,176,000
C94: Troligt | D94: =IFERROR(GETPIVOTDATA("Summa av Summa",$C$69,"Nyttokategori","2. Omfördelningsnytta"),0) -> 127,760,000 | E94: =Kostnader[[#Totals],[Summa]] -> 11,600,000 | F94: =D94-E94 -> 116,160,000
C95: Max | D95: =IFERROR(GETPIVOTDATA("Summa av Max",$C$69,"Nyttokategori","2. Omfördelningsnytta"),0) -> 249,360,000 | E95: =Kostnader[[#Totals],[Max]] -> 11,136,000 | F95: =D95-E93 -> 240,080,000
C98: Underlag för payback-år
C99: Alla nyttor
C100: Följande rader används för beräkning av Payback-år | D100: =Startår -> 2020 | E100: =D100+1 -> 2021 | F100: =E100+1 -> 2022 | G100: 2023 | H100: 2024 | I100: 2025
C101: Ack. diskonterat kassaflöde > 0? | D101: =Nyttokalkyl!J27>0 -> FALSE | E101: =Nyttokalkyl!K27>0 -> TRUE | F101: =Nyttokalkyl!L27>0 -> TRUE | G101: =Nyttokalkyl!M27>0 -> TRUE | H101: =Nyttokalkyl!N27>0 -> TRUE | I101: =Nyttokalkyl!O27>0 -> TRUE
C102: Är detta ett paybackår? | D102: =IF(D101=FALSE,"x",D100) -> x | E102: =IF(E101=FALSE,"x",E100) -> 2,021 | F102: 2,022 | G102: 2,023 | H102: 2,024 | I102: 2,025
C103: Första paybackår (om något) | D103: =MIN(D102:I102) -> 2,021
C104: Paybackår? | D104: =IF('-Admin-'!D103=0,"Ingen payback",'-Admin-'!D103) -> 2021
C107: Finansiella nyttor
C108: Följande rader används för beräkning av Payback-år | D108: =Startår -> 2020 | E108: =D108+1 -> 2021 | F108: =E108+1 -> 2022 | G108: =F108+1 -> 2023 | H108: =G108+1 -> 2024 | I108: =H108+1 -> 2025
C109: Ack. diskonterat kassaflöde > 0? | D109: =Nyttokalkyl!J72>0 -> FALSE | E109: =Nyttokalkyl!K72>0 -> FALSE | F109: =Nyttokalkyl!L72>0 -> FALSE | G109: =Nyttokalkyl!M72>0 -> FALSE | H109: =Nyttokalkyl!N72>0 -> FALSE | I109: =Nyttokalkyl!O72>0 -> FALSE
C110: Är detta ett paybackår? | D110: =IF(D109=FALSE,"x",D108) -> x | E110: =IF(E109=FALSE,"x",E108) -> x | F110: x | G110: x | H110: x | I110: x
C111: Första paybackår (om något) | D111: =MIN(D110:I110) -> 0
C112: Paybackår? | D112: =IF('-Admin-'!D111=0,"Ingen payback",'-Admin-'!D111) -> Ingen payback
C115: Omfördelningsnyttor
C116: Följande rader används för beräkning av Payback-år | D116: =Startår -> 2020 | E116: =D116+1 -> 2021 | F116: =E116+1 -> 2022 | G116: =F116+1 -> 2023 | H116: =G116+1 -> 2024 | I116: =H116+1 -> 2025
C117: Ack. diskonterat kassaflöde > 0? | D117: =Nyttokalkyl!J123>0 -> FALSE | E117: =Nyttokalkyl!K123>0 -> TRUE | F117: =Nyttokalkyl!L123>0 -> TRUE | G117: =Nyttokalkyl!M123>0 -> TRUE | H117: =Nyttokalkyl!N123>0 -> TRUE | I117: =Nyttokalkyl!O123>0 -> TRUE
C118: Är detta ett paybackår? | D118: =IF(D117=FALSE,"x",D116) -> x | E118: =IF(E117=FALSE,"x",E116) -> 2,021 | F118: 2,022 | G118: 2,023 | H118: 2,024 | I118: 2,025
C119: Första paybackår (om något) | D119: =MIN(D118:I118) -> 2,021
C120: Paybackår? | D120: =IF('-Admin-'!D119=0,"Ingen payback",'-Admin-'!D119) -> 2021
